lending/lending_fUSD_20250130
["ID","MTS","AMOUNT","RATE_DAILY","PERIOD"]
[350978840,1738265444873,-175.595869,0.00019,2]
[350978842,1738265444882,-175.595869,0.00019,2]
[350978844,1738265444892,-175.595869,0.00019,2]
[350978846,1738265444901,-175.595869,0.00019,2]
[350978848,1738265444915,-175.595869,0.00019,2]
[350978850,1738265444924,-175.595869,0.00019,2]
[350978852,1738265444934,-175.595875,0.00019,2]
[350978854,1738265444943,-300.0,0.00019,2]
[350978856,1738265444954,-392.743207,0.00019001,2]
[350978858,1738265444964,-392.743207,0.00019001,2]
[350978860,1738265444973,-7941.59017781,0.00019003,2]
[350978862,1738265444983,-340.42856214,0.0001901,7]
[350978864,1738265444996,-300.0,0.00019014,2]
[350978866,1738265445006,-300.0,0.00019014,2]
[350978868,1738265445016,-392.743207,0.00019015,2]
[350978870,1738265445027,-392.743207,0.00019015,2]
[350978872,1738265445036,-300.0,0.00019019,2]
[350978874,1738265445045,-1000.0,0.0001902,2]
[350978876,1738265445054,-151.0,0.0001902,2]
[350978878,1738265445063,-364.0,0.0001902,2]
[350978880,1738265445073,-364.0,0.0001902,2]
[350978882,1738265445082,-605.888653,0.0001902,2]
[350978884,1738265445091,-300.0,0.0001903,2]
[350978887,1738265445101,-392.743207,0.00019031,2]
[350978889,1738265445110,-392.743214,0.00019031,2]
[350978891,1738265445119,-484.67602742,0.00019059,2]
[350978893,1738265445129,-592.88727405,0.00019075,2]
[350978895,1738265445138,-151.321894,0.00019078,2]
[350978897,1738265445147,-364.0,0.00019078,2]
[350978899,1738265445156,-364.0,0.00019078,2]
[350978901,1738265445166,-605.888653,0.00019078,2]
[350978903,1738265445175,-231.14618736,0.00019078,2]
[350978905,1738265445184,-11789.17601592,0.00019078,2]
[350978907,1738265445193,-3762.00810259,0.00019078,2]
[350978909,1738265445202,-308.81750923,0.00019078,2]
[350978911,1738265445211,-200.0,0.00019089,2]
[350978913,1738265445222,-200.0,0.00019089,2]
[350978915,1738265445231,-306.0,0.00019096,2]
[350978917,1738265445241,-364.0,0.00019099,2]
[350978919,1738265445250,-364.0,0.00019099,2]
[350978921,1738265445259,-605.888653,0.00019099,2]
[350978923,1738265445270,-5069.01549963,0.0001911,2]
[350978925,1738265445280,-300.0,0.00019112,2]
[350978927,1738265445289,-327138.30560411,0.00019113,2]
[350978929,1738265445299,-364.0,0.00019113,2]
[350978931,1738265445308,-364.0,0.00019113,2]
[350978933,1738265445317,-605.888653,0.00019113,2]
[350978934,1738265445327,-364.0,0.00019115,2]
[350978936,1738265445336,-364.0,0.00019115,2]
[350978938,1738265445345,-364.0,0.00019115,2]
[350978940,1738265445354,-364.0,0.00019115,2]
[350978941,1738265445364,-605.888653,0.00019115,2]
[350978942,1738265445373,-605.888651,0.00019115,2]
[350978944,1738265445383,-2405.0,0.00019123,2]
[350978946,1738265445392,-658.22,0.00019136,2]
[350978948,1738265445401,-7941.59017781,0.00019141,2]
[350978950,1738265445411,-1058.0,0.00019144,2]
[350978952,1738265445420,-441.68396209,0.00019162,2]
[350978954,1738265445429,-800.0,0.00019164,2]
[350978956,1738265445439,-500.0,0.00019164,2]
[350978958,1738265445448,-9695.9921617,0.00019167,2]
[350978960,1738265445459,-592.88727405,0.00019167,2]
[350978963,1738265445468,-99395.92713042,0.0001917,2]
[350978965,1738265445478,-2000.0,0.00019171,2]
[350978967,1738265445486,-200.0,0.00019171,2]
[350978969,1738265445496,-500.0,0.00019173,2]
[350978971,1738265445505,-500.0,0.00019173,2]
[350978973,1738265445514,-531.41330234,0.00019173,2]
[350978975,1738265445526,-152.08223395,0.00019173,2]
[350978977,1738265445536,-301.80185263,0.00019173,2]
[350978979,1738265445545,-518.09780642,0.00019173,2]
[350978981,1738265445554,-500.0,0.00019173,2]
[350978983,1738265445563,-517.01576522,0.00019173,2]
[350978985,1738265445572,-500.0,0.00019173,2]
[350978987,1738265445581,-500.0,0.00019173,2]
[350978989,1738265445591,-501.10945977,0.00019173,2]
[350978990,1738265445601,-500.0,0.00019173,2]
[350978992,1738265445610,-206.94053563,0.00019173,2]
[350978995,1738265445619,-156.558978,0.00019178,2]
[350978997,1738265445629,-687.663554,0.00019178,2]
[350978999,1738265445639,-150.530069,0.00019178,2]
[350979001,1738265445648,-150.530069,0.00019178,2]
[350979003,1738265445657,-150.910646,0.00019178,2]
[350979005,1738265445666,-500.0,0.00019178,2]
[350979007,1738265445676,-500.0,0.00019178,2]
[350979009,1738265445685,-339.58312417,0.00019178,2]
[350979010,1738265445694,-501.82926816,0.00019178,2]
[350979011,1738265445703,-500.0,0.00019178,2]
[350979012,1738265445712,-501.18966074,0.00019178,2]
[350979013,1738265445722,-367.30243105,0.00019178,2]
[350979014,1738265445731,-285.98728424,0.00019178,2]
[350979015,1738265445741,-502.08322882,0.00019178,2]
[350979016,1738265445750,-500.0,0.00019178,2]
[350979017,1738265445760,-500.0,0.00019178,2]
[350979018,1738265445771,-500.0,0.00019178,2]
[350979019,1738265445780,-253.12170913,0.00019178,2]
[350979020,1738265445790,-500.0,0.00019178,2]
[350979022,1738265445800,-254.93958938,0.00019178,2]
[350979024,1738265445809,-400.14693863,0.00019178,2]
[350979027,1738265445828,-500.0,0.00019178,2]
[350979030,1738265445849,-500.0,0.00019178,2]
[350979033,1738265445865,-501.86723739,0.00019178,2]
[350979036,1738265445883,-500.0,0.00019178,2]
[350979039,1738265445903,-500.0,0.00019178,2]
[350979042,1738265445922,-188.794931,0.00019178,2]
[350979044,1738265445936,-158.886002,0.00019178,2]
[350979047,1738265445955,-500.0,0.00019178,2]
[350979050,1738265445973,-500.0,0.00019178,2]
[350979053,1738265445991,-500.0,0.00019178,2]
[350979056,1738265446008,-159.187521,0.00019178,2]
[350979059,1738265446027,-512.88099499,0.00019178,2]
[350979062,1738265446045,-500.0,0.00019178,2]
[350979064,1738265446062,-500.0,0.00019178,2]
[350979067,1738265446080,-158.64549848,0.00019178,2]
[350979069,1738265446095,-158.59115318,0.00019178,2]
[350979072,1738265446109,-500.0,0.00019178,2]
[350979074,1738265446125,-500.0,0.00019178,2]
[350979076,1738265446143,-1153.031615,0.00019178,2]
[350979077,1738265446155,-500.0,0.00019178,2]
[350979078,1738265446170,-506.61908596,0.00019178,2]
[350979079,1738265446186,-500.0,0.00019178,2]
[350979080,1738265446198,-150.910647,0.00019178,2]
[350979081,1738265446213,-500.0,0.00019178,2]
[350979082,1738265446228,-602.92,0.00019178,2]
[350979084,1738265446243,-323.18700995,0.00019178,2]
[350979086,1738265446258,-500.0,0.00019178,2]
[350979088,1738265446274,-500.0,0.00019178,2]
[350979090,1738265446289,-761.32,0.00019178,2]
[350979092,1738265446304,-500.0,0.00019178,2]
[350979094,1738265446319,-500.0,0.00019178,2]
[350979097,1738265446334,-540.09,0.00019178,2]
[350979100,1738265446348,-500.0,0.00019178,2]
[350979102,1738265446363,-640.49868728,0.00019178,2]
[350979106,1738265446384,-507.46599532,0.00019178,2]
[350979108,1738265446400,-500.0,0.00019178,2]
[350979111,1738265446415,-759.07,0.00019178,2]
[350979114,1738265446429,-500.0,0.00019178,2]
[350979116,1738265446444,-500.0,0.00019178,2]
[350979119,1738265446459,-500.0,0.00019178,2]
[350979122,1738265446474,-500.0,0.00019178,2]
[350979124,1738265446489,-500.0,0.00019178,2]
[350979127,1738265446505,-500.0,0.00019178,2]
[350979129,1738265446520,-500.0,0.00019178,2]
[350979132,1738265446536,-500.0,0.00019178,2]
[350979135,1738265446551,-500.0,0.00019178,2]
[350979137,1738265446567,-500.0,0.00019178,2]
[350979140,1738265446583,-500.0,0.00019178,2]
[350979143,1738265446599,-500.0,0.00019178,2]
[350979145,1738265446614,-500.0,0.00019178,2]
[350979148,1738265446629,-500.0,0.00019178,2]
[350979150,1738265446644,-500.0,0.00019178,2]
[350979153,1738265446658,-500.0,0.00019178,2]
[350979156,1738265446673,-500.0,0.00019178,2]
[350979158,1738265446688,-500.0,0.00019178,2]
[350979161,1738265446703,-500.0,0.00019178,2]
[350979164,1738265446727,-505.51364149,0.00019178,2]
[350979167,1738265446743,-500.0,0.00019178,2]
[350979170,1738265446759,-500.0,0.00019178,2]
[350979172,1738265446776,-500.0,0.00019178,2]
[350979175,1738265446791,-771.56,0.00019178,2]
[350979177,1738265446807,-500.0,0.00019178,2]
[350979180,1738265446822,-192.1053611,0.00019178,2]
[350979183,1738265446836,-500.0,0.00019178,2]
[350979186,1738265446858,-500.0,0.00019178,2]
[350979189,1738265446874,-834.88,0.00019178,2]
[350979191,1738265446890,-500.0,0.00019178,2]
[350979194,1738265446907,-500.0,0.00019178,2]
[350979197,1738265446925,-509.99,0.00019178,2]
[350979201,1738265446941,-500.0,0.00019178,2]
[350979204,1738265446957,-191.91628548,0.00019178,2]
[350979207,1738265446973,-500.0,0.00019178,2]
[350979210,1738265446990,-500.0,0.00019178,2]
[350979212,1738265447004,-500.0,0.00019178,2]
[350979214,1738265447018,-500.0,0.00019178,2]
[350979217,1738265447034,-500.0,0.00019178,2]
[350979220,1738265447050,-503.52020925,0.00019178,2]
[350979222,1738265447064,-513.67013792,0.00019178,2]
[350979225,1738265447081,-150.530068,0.00019178,2]
[350979228,1738265447096,-192.10183018,0.00019178,2]
[350979230,1738265447111,-959.3,0.00019178,2]
[350979233,1738265447127,-501.26859769,0.00019178,2]
[350979236,1738265447144,-500.0,0.00019178,2]
[350979238,1738265447157,-500.0,0.00019178,2]
[350979241,1738265447173,-500.0,0.00019178,2]
[350979243,1738265447189,-500.0,0.00019178,2]
[350979246,1738265447203,-500.0,0.00019178,2]
[350979249,1738265447218,-857.47,0.00019178,2]
[350979251,1738265447233,-500.0,0.00019178,2]
[350979254,1738265447248,-500.0,0.00019178,2]
[350979256,1738265447263,-500.0,0.00019178,2]
[350979259,1738265447281,-500.0,0.00019178,2]
[350979262,1738265447296,-316.82637519,0.00019178,2]
[350979265,1738265447311,-500.0,0.00019178,2]
[350979267,1738265447327,-273.54573881,0.00019178,2]
[350979270,1738265447342,-500.0,0.00019178,2]
[350979272,1738265447357,-500.0,0.00019178,2]
[350979275,1738265447373,-500.0,0.00019178,2]
[350979278,1738265447387,-506.07,0.00019178,2]
[350979280,1738265447402,-316.74666893,0.00019178,2]
[350979283,1738265447418,-500.0,0.00019178,2]
[350979286,1738265447434,-504.26096486,0.00019178,2]
[350979289,1738265447449,-500.0,0.00019178,2]
[350979291,1738265447466,-500.0,0.00019178,2]
[350979294,1738265447482,-315.92252763,0.00019178,2]
[350979296,1738265447497,-500.0,0.00019178,2]
[350979299,1738265447513,-1422.24,0.00019178,2]
[350979302,1738265447529,-500.0,0.00019178,2]
[350979304,1738265447545,-641.69406204,0.00019178,2]
[350979307,1738265447560,-500.0,0.00019178,2]
[350979310,1738265447576,-208.03422541,0.00019178,2]
[350979312,1738265447591,-500.0,0.00019178,2]
[350979315,1738265447606,-500.0,0.00019178,2]
[350979317,1738265447619,-500.0,0.00019178,2]
[350979320,1738265447634,-500.0,0.00019178,2]
[350979322,1738265447650,-500.0,0.00019178,2]
[350979325,1738265447666,-500.0,0.00019178,2]
[350979327,1738265447679,-500.0,0.00019178,2]
[350979329,1738265447689,-500.0,0.00019178,2]
[350979331,1738265447698,-500.0,0.00019178,2]
[350979334,1738265447710,-500.0,0.00019178,2]
[350979336,1738265447719,-500.28750883,0.00019178,2]
[350979338,1738265447729,-500.0,0.00019178,2]
[350979340,1738265447739,-500.68666262,0.00019178,2]
[350979342,1738265447749,-1000.0,0.00019178,2]
[350979344,1738265447758,-660.77,0.00019178,2]
[350979346,1738265447767,-500.0,0.00019178,2]
[350979348,1738265447778,-500.0,0.00019178,2]
[350979350,1738265447788,-499.99904934,0.00019178,2]
[350979352,1738265447798,-500.0,0.00019178,2]
[350979354,1738265447808,-500.0,0.00019178,2]
[350979356,1738265447818,-500.0,0.00019178,2]
[350979358,1738265447827,-500.0,0.00019178,2]
[350979360,1738265447836,-500.0,0.00019178,2]
[350979362,1738265447845,-500.0,0.00019178,2]
[350979364,1738265447855,-500.0,0.00019178,2]
[350979366,1738265447866,-500.0,0.00019178,2]
[350979395,1738265448340,-186.14682908,0.00019178,2]
[350979396,1738265448385,-500.0,0.00019178,2]
[350979397,1738265448397,-500.0,0.00019178,2]
[350979398,1738265448407,-500.0,0.00019178,2]
[350979399,1738265448417,-500.0,0.00019178,2]
[350979400,1738265448427,-534.58246009,0.00019178,2]
[350979401,1738265448438,-500.0,0.00019178,2]
[350979402,1738265448448,-622.72627475,0.00019178,2]
[350979403,1738265448458,-500.0,0.00019178,2]
[350979404,1738265448469,-500.0,0.00019178,2]
[350979405,1738265448479,-500.0,0.00019178,2]
[350979407,1738265448490,-500.63913001,0.00019178,2]
[350979409,1738265448501,-503.59739243,0.00019178,2]
[350979410,1738265448511,-500.0,0.00019178,2]
[350979411,1738265448522,-500.0,0.00019178,2]
[350979412,1738265448532,-500.0,0.00019178,2]
[350979413,1738265448541,-500.0,0.00019178,2]
[350979414,1738265448551,-500.0,0.00019178,2]
[350979415,1738265448562,-500.0,0.00019178,2]
[350979416,1738265448573,-500.0,0.00019178,2]
[350979417,1738265448584,-500.0,0.00019178,2]
[350979418,1738265448593,-500.0,0.00019178,2]
[350979419,1738265448604,-500.0,0.00019178,2]
[350979420,1738265448613,-500.0,0.00019178,2]
[350979421,1738265448623,-500.0,0.00019178,2]
[350979422,1738265448633,-500.0,0.00019178,2]
[350979423,1738265448642,-855.0,0.00019178,2]
[350979424,1738265448652,-500.0,0.00019178,2]
[350979425,1738265448662,-506.58,0.00019178,2]
[350979426,1738265448672,-500.0,0.00019178,2]
[350979427,1738265448682,-500.0,0.00019178,2]
[350979428,1738265448692,-500.0,0.00019178,2]
[350979429,1738265448701,-500.0,0.00019178,2]
[350979430,1738265448711,-500.0,0.00019178,2]
[350979431,1738265448721,-513.188417,0.00019178,2]
[350979432,1738265448731,-500.0,0.00019178,2]
[350979433,1738265448742,-500.0,0.00019178,2]
[350979434,1738265448752,-500.0,0.00019178,2]
[350979435,1738265448762,-500.0,0.00019178,2]
[350979436,1738265448773,-500.0,0.00019178,2]
[350979437,1738265448783,-500.0,0.00019178,2]
[350979438,1738265448793,-500.0,0.00019178,2]
[350979439,1738265448803,-483.34453006,0.00019178,2]
[350979440,1738265448813,-500.0,0.00019178,2]
[350979441,1738265448822,-500.0,0.00019178,2]
[350979442,1738265448832,-500.0,0.00019178,2]
[350979443,1738265448842,-500.0,0.00019178,2]
[350979444,1738265448852,-500.0,0.00019178,2]
[350979445,1738265448861,-500.0,0.00019178,2]
[350979446,1738265448872,-500.0,0.00019178,2]
[350979447,1738265448882,-500.0,0.00019178,2]
[350979448,1738265448893,-500.0,0.00019178,2]
[350979449,1738265448906,-500.0,0.00019178,2]
[350979450,1738265448918,-156.558975,0.00019178,2]
[350979451,1738265448929,-500.0,0.00019178,2]
[350979452,1738265448938,-500.0,0.00019178,2]
[350979453,1738265448947,-500.0,0.00019178,2]
[350979454,1738265448958,-500.0,0.00019178,7]
[350979455,1738265448968,-500.0,0.00019178,2]
[350979456,1738265448980,-500.0,0.00019178,2]
[350979457,1738265448991,-500.0,0.00019178,2]
[350979458,1738265449001,-500.0,0.00019178,2]
[350979459,1738265449011,-500.0,0.00019178,2]
[350979460,1738265449025,-500.0,0.00019178,2]
[350979461,1738265449034,-500.0,0.00019178,2]
[350979462,1738265449043,-500.0,0.00019178,2]
[350979463,1738265449053,-500.0,0.00019178,2]
[350979464,1738265449064,-918.44,0.00019178,2]
[350979465,1738265449074,-500.0,0.00019178,2]
[350979466,1738265449085,-500.0,0.00019178,2]
[350979467,1738265449094,-1021.42,0.00019178,2]
[350979468,1738265449104,-500.0,0.00019178,2]
[350979469,1738265449115,-500.0,0.00019178,2]
[350979470,1738265449125,-522.2786524,0.00019178,2]
[350979471,1738265449135,-500.0,0.00019178,2]
[350979472,1738265449145,-644.53,0.00019178,2]
[350979473,1738265449155,-501.97219329,0.00019178,2]
[350979474,1738265449165,-500.0,0.00019178,2]
[350979475,1738265449175,-205.3730635,0.00019178,2]
[350979476,1738265449186,-500.0,0.00019178,2]
[350979477,1738265449196,-500.0,0.00019178,2]
[350979478,1738265449206,-500.0,0.00019178,2]
[350979479,1738265449215,-500.0,0.00019178,2]
[350979480,1738265449225,-500.0,0.00019178,2]
[350979481,1738265449235,-816.39,0.00019178,2]
[350979482,1738265449246,-1030.03,0.00019178,2]
[350979483,1738265449256,-210.84423,0.00019178,2]
[350979484,1738265449265,-280.7658057,0.00019178,2]
[350979485,1738265449277,-500.0,0.00019178,2]
[350979486,1738265449289,-500.0,0.00019178,2]
[350979487,1738265449299,-500.0,0.00019178,2]
[350979488,1738265449309,-500.0,0.00019178,2]
[350979489,1738265449320,-500.0,0.00019178,2]
[350979490,1738265449330,-500.0,0.00019178,2]
[350979491,1738265449340,-500.0,0.00019178,2]
[350979492,1738265449350,-500.0,0.00019178,2]
[350979493,1738265449360,-500.0,0.00019178,2]
[350979494,1738265449371,-500.0,0.00019178,2]
[350979495,1738265449381,-503.72,0.00019178,2]
[350979496,1738265449392,-500.0,0.00019178,2]
[350979497,1738265449402,-500.0,0.00019178,2]
[350979498,1738265449412,-500.0,0.00019178,2]
[350979499,1738265449423,-500.0,0.00019178,2]
[350979500,1738265449433,-164.311159,0.00019178,2]
[350979501,1738265449443,-500.0,0.00019178,2]
[350979502,1738265449453,-500.0,0.00019178,2]
[350979503,1738265449464,-518.82853944,0.00019178,2]
[350979504,1738265449474,-500.0,0.00019178,2]
[350979505,1738265449486,-500.0,0.00019178,2]
[350979506,1738265449496,-500.0,0.00019178,2]
[350979507,1738265449506,-500.0,0.00019178,2]
[350979508,1738265449516,-500.0,0.00019178,2]
[350979509,1738265449527,-500.0,0.00019178,2]
[350979510,1738265449537,-500.0,0.00019178,2]
[350979511,1738265449546,-500.0,0.00019178,2]
[350979512,1738265449555,-500.0,0.00019178,2]
[350979513,1738265449565,-500.0,0.00019178,2]
[350979514,1738265449577,-500.0,0.00019178,2]
[350979515,1738265449587,-500.0,0.00019178,2]
[350979516,1738265449596,-500.0,0.00019178,2]
[350979517,1738265449605,-500.0,0.00019178,2]
[350979518,1738265449615,-446.91481745,0.00019178,2]
[350979519,1738265449624,-500.0,0.00019178,2]
[350979520,1738265449634,-500.0,0.00019178,2]
[350979521,1738265449643,-500.0,0.00019178,2]
[350979522,1738265449654,-503.5151053,0.00019178,2]
[350979523,1738265449663,-500.0,0.00019178,2]
[350979524,1738265449673,-500.0,0.00019178,2]
[350979525,1738265449682,-1137.44,0.00019178,2]
[350979526,1738265449692,-500.0,0.00019178,2]
[350979527,1738265449701,-500.0,0.00019178,2]
[350979528,1738265449710,-500.0,0.00019178,2]
[350979529,1738265449720,-200.0,0.00019178,2]
[350979530,1738265449729,-500.0,0.00019178,2]
[350979531,1738265449738,-500.0,0.00019178,2]
[350979532,1738265449747,-300.0,0.00019178,2]
[350979533,1738265449757,-500.0,0.00019178,2]
[350979534,1738265449767,-500.0,0.00019178,2]
[350979535,1738265449778,-500.0,0.00019178,2]
[350979536,1738265449787,-500.0,0.00019178,2]
[350979537,1738265449798,-500.0,0.00019178,2]
[350979538,1738265449808,-500.0,0.00019178,2]
[350979539,1738265449818,-500.0,0.00019178,2]
[350979540,1738265449828,-500.0,0.00019178,2]
[350979541,1738265449838,-500.0,0.00019178,2]
[350979542,1738265449849,-561.25,0.00019178,2]
[350979543,1738265449859,-500.0,0.00019178,2]
[350979544,1738265449870,-679.6,0.00019178,2]
[350979545,1738265449880,-500.0,0.00019178,2]
[350979546,1738265449891,-500.0,0.00019178,2]
[350979547,1738265449902,-500.0,0.00019178,2]
[350979548,1738265449915,-500.0,0.00019178,2]
[350979549,1738265449925,-500.0,0.00019178,2]
[350979550,1738265449935,-617.07,0.00019178,2]
[350979551,1738265449946,-500.0,0.00019178,2]
[350979552,1738265449956,-500.0,0.00019178,2]
[350979553,1738265449966,-502.43,0.00019178,2]
[350979554,1738265449975,-503.55046165,0.00019178,2]
[350979555,1738265449986,-500.0,0.00019178,2]
[350979556,1738265449996,-500.0,0.00019178,2]
[350979557,1738265450006,-500.0,0.00019178,2]
[350979558,1738265450017,-500.0,0.00019178,2]
[350979559,1738265450030,-500.0,0.00019178,2]
[350979560,1738265450040,-1121.43,0.00019178,2]
[350979561,1738265450051,-500.0,0.00019178,2]
[350979562,1738265450061,-500.0,0.00019178,2]
[350979563,1738265450072,-500.0,0.00019178,2]
[350979564,1738265450081,-1458.58,0.00019178,2]
[350979565,1738265450092,-500.0,0.00019178,2]
[350979566,1738265450102,-500.0,0.00019178,2]
[350979567,1738265450112,-500.0,0.00019178,2]
[350979568,1738265450122,-275.05581558,0.00019178,2]
[350979569,1738265450132,-500.0,0.00019178,2]
[350979570,1738265450144,-500.0,0.00019178,2]
[350979571,1738265450154,-500.0,0.00019178,2]
[350979572,1738265450165,-500.0,0.00019178,2]
[350979573,1738265450176,-500.0,0.00019178,2]
[350979574,1738265450186,-500.0,0.00019178,2]
[350979575,1738265450196,-500.0,0.00019178,2]
[350979576,1738265450206,-500.0,0.00019178,2]
[350979577,1738265450217,-1719.89,0.00019178,2]
[350979578,1738265450227,-500.0,0.00019178,2]
[350979579,1738265450237,-500.0,0.00019178,2]
[350979580,1738265450247,-515.63595919,0.00019178,2]
[350979581,1738265450256,-500.0,0.00019178,2]
[350979582,1738265450266,-500.0,0.00019178,2]
[350979583,1738265450280,-500.0,0.00019178,2]
[350979584,1738265450289,-500.0,0.00019178,2]
[350979585,1738265450299,-500.0,0.00019178,2]
[350979586,1738265450309,-500.0,0.00019178,2]
[350979587,1738265450319,-584.66,0.00019178,2]
[350979588,1738265450329,-500.0,0.00019178,2]
[350979589,1738265450339,-500.0,0.00019178,2]
[350979590,1738265450349,-500.0,0.00019178,2]
[350979591,1738265450359,-1854.43,0.00019178,2]
[350979592,1738265450370,-521.40765886,0.00019178,2]
[350979593,1738265450380,-500.0,0.00019178,2]
[350979594,1738265450390,-500.0,0.00019178,2]
[350979595,1738265450401,-500.0,0.00019178,2]
[350979596,1738265450411,-517.56961723,0.00019178,2]
[350979597,1738265450421,-423.60583499,0.00019178,2]
[350979598,1738265450430,-500.0,0.00019178,2]
[350979599,1738265450439,-582.44,0.00019178,2]
[350979600,1738265450449,-500.0,0.00019178,2]
[350979601,1738265450459,-434.92799968,0.00019178,2]
[350979602,1738265450469,-500.0,0.00019178,2]
[350979603,1738265450479,-500.0,0.00019178,2]
[350979604,1738265450489,-500.0,0.00019178,2]
[350979605,1738265450499,-762.77,0.00019178,2]
[350979606,1738265450508,-326.06053272,0.00019178,2]
[350979607,1738265450518,-500.0,0.00019178,2]
[350979608,1738265450532,-500.0,0.00019178,2]
[350979609,1738265450541,-543.86245103,0.00019178,2]
[350979610,1738265450551,-500.0,0.00019178,2]
[350979611,1738265450561,-1546.15,0.00019178,2]
[350979612,1738265450571,-506.49530444,0.00019178,2]
[350979613,1738265450580,-1424.93,0.00019178,2]
[350979614,1738265450590,-500.0,0.00019178,2]
[350979615,1738265450599,-504.22487959,0.00019178,2]
[350979616,1738265450608,-525.40582673,0.00019178,2]
[350979617,1738265450618,-500.0,0.00019178,2]
[350979618,1738265450628,-500.0,0.00019178,2]
[350979619,1738265450638,-500.0,0.00019178,2]
[350979620,1738265450647,-501.64877265,0.00019178,2]
[350979621,1738265450656,-500.0,0.00019178,2]
[350979622,1738265450666,-503.06844758,0.00019178,2]
[350979623,1738265450675,-2360.74,0.00019178,2]
[350979624,1738265450685,-500.0,0.00019178,2]
[350979625,1738265450694,-500.0,0.00019178,2]
[350979626,1738265450704,-797.05,0.00019178,2]
[350979627,1738265450713,-500.0,0.00019178,2]
[350979628,1738265450723,-501.82295941,0.00019178,2]
[350979629,1738265450732,-559.14,0.00019178,2]
[350979630,1738265450741,-1932.62,0.00019178,2]
[350979631,1738265450751,-500.0,0.00019178,2]
[350979632,1738265450760,-500.0,0.00019178,2]
[350979633,1738265450770,-500.0,0.00019178,2]
[350979634,1738265450782,-500.0,0.00019178,2]
[350979635,1738265450792,-500.0,0.00019178,2]
[350979636,1738265450801,-500.0,0.00019178,2]
[350979637,1738265450812,-500.0,0.00019178,2]
[350979638,1738265450822,-612.49,0.00019178,2]
[350979639,1738265450831,-1912.81,0.00019178,2]
[350979640,1738265450841,-500.0,0.00019178,2]
[350979641,1738265450851,-500.0,0.00019178,2]
[350979642,1738265450860,-500.0,0.00019178,2]
[350979643,1738265450870,-510.01582137,0.00019178,2]
[350979644,1738265450879,-1000.0,0.00019178,30]
[350979645,1738265450889,-500.0,0.00019178,2]
[350979646,1738265450901,-500.0,0.00019178,2]
[350979647,1738265450912,-500.0,0.00019178,2]
[350979648,1738265450920,-1990.99,0.00019178,2]
[350979649,1738265450930,-500.0,0.00019178,2]
[350979650,1738265450939,-500.0,0.00019178,2]
[350979651,1738265450949,-500.0,0.00019178,2]
[350979652,1738265450959,-720.04,0.00019178,2]
[350979653,1738265450968,-500.0,0.00019178,2]
[350979654,1738265450979,-500.0,0.00019178,2]
[350979655,1738265450990,-750.01,0.00019178,2]
[350979656,1738265450999,-500.0,0.00019178,2]
[350979657,1738265451008,-961.31,0.00019178,2]
[350979658,1738265451018,-523.04,0.00019178,2]
[350979659,1738265451033,-500.0,0.00019178,2]
[350979660,1738265451042,-4748.0,0.00019178,2]